bitfinex/quotes_ETHUSD_20241106
["timestamp","ask_amount","ask_price","bid_price","bid_amount"]
[1730932828147,0.7870166,2707.5,2706.9,0.01]
[1730932828347,0.06149175,2707.5,2706.9,0.01]
[1730932828556,0.06149175,2707.5,2706.6,0.7721]
[1730932828889,0.05550894,2707.4,2706.6,0.7721]
[1730932829096,0.05076894,2707.4,2706.6,0.7721]
[1730932829250,0.05076894,2707.4,2706.8,0.01]
[1730932829444,3.0,2707.9,2706.8,0.01]
[1730932829725,3.52011967,2707.9,2706.8,0.01]
[1730932829912,3.05554338,2707.8,2706.8,0.01]
[1730932830083,3.05554338,2707.8,2706.7,0.01]
[1730932830291,3.52011967,2707.6,2706.5,0.01]
[1730932830596,3.40180002,2707.5,2706.5,0.01]
[1730932830890,0.40180002,2707.5,2706.5,0.01]
[1730932831195,0.40180002,2707.5,2706.4,0.7621]
[1730932832196,3.92191969,2707.5,2706.4,0.7621]
[1730932832406,0.42317568,2707.5,2706.4,0.7621]
[1730932832590,0.07116371,2707.5,2706.4,0.7621]
[1730932833695,0.07116371,2707.5,2706.8,0.01]
[1730932833907,1.31783606,2708.0,2706.8,0.01]
[1730932833908,1.31783606,2708.0,2706.9,0.7838]
[1730932834055,0.07194956,2707.4,2706.9,0.7938]
[1730932834259,0.59626529,2708.0,2706.9,0.7938]
[1730932834612,0.07216587,2707.9,2707.3,0.01]
[1730932834894,0.59626529,2708.0,2707.5,0.01]
[1730932834895,0.21113489,2708.0,2707.5,0.01]
[1730932835049,0.21113489,2708.0,2707.6,0.7719]
[1730932835253,0.21113489,2708.0,2707.8,0.56]
[1730932835766,2.03682456,2709.7,2708.8,0.01]
[1730932835767,0.36022456,2709.7,2708.8,0.01]
[1730932835981,0.02633605,2711.6,2709.9,1.3219]
[1730932836270,0.02633605,2711.6,2709.9,2.99932657]
[1730932836609,3.52011967,2711.3,2709.9,0.7819]
[1730932836951,1.42139044,2710.0,2709.9,0.7819]
[1730932837401,1.42139044,2710.0,2709.6,0.01]
[1730932837575,1.42139044,2710.0,2709.5,0.7872]
[1730932837757,1.352754,2710.0,2709.5,0.7872]
[1730932837951,1.352754,2710.0,2709.7,0.01]
[1730932838153,0.06859325,2709.9,2709.5,0.7772]
[1730932838453,1.352754,2710.0,2709.5,1.39509854]
[1730932839104,1.352754,2710.0,2709.9,4.39728809]
[1730932839461,1.352754,2710.0,2709.9,4.96618663]
[1730932840757,0.58479738,2710.0,2709.9,0.57889854]
[1730932842078,0.58479738,2710.0,2709.9,3.04823829]
[1730932842289,0.02633605,2711.6,2710.9,0.01]
[1730932842458,0.07042704,2711.4,2710.9,0.01]
[1730932842660,0.02633605,2711.6,2710.9,0.01]
[1730932843405,0.02633605,2711.6,2711.2,0.01]
[1730932843587,0.02633605,2711.6,2711.1,0.01]
[1730932843976,0.02633605,2711.6,2710.8,0.7781]
[1730932843977,0.02633605,2711.6,2710.9,0.01]
[1730932844188,0.02633605,2711.6,2710.8,0.7781]
[1730932844386,0.8903394,2711.5,2710.5,0.56889854]
[1730932844704,0.8903394,2711.5,2710.1,0.01]
[1730932844872,0.8903394,2711.5,2710.0,0.01]
[1730932844873,0.07686248,2711.4,2710.0,0.01]
[1730932845078,0.8903394,2711.5,2710.0,0.01]
[1730932845388,0.01,2711.3,2710.0,0.01]
[1730932845702,0.06689139,2711.2,2710.0,0.65268586]
[1730932845906,0.8903394,2711.5,2710.0,1.16557594]
[1730932846223,0.06697768,2711.4,2710.1,0.56889854]
[1730932846365,0.06697768,2711.4,2710.3,0.005]
[1730932846567,0.06697768,2711.4,2710.4,0.07377643]
[1730932846784,0.06697768,2711.4,2710.4,0.64267497]
[1730932847175,0.1292394,2711.5,2710.7,0.005]
[1730932847383,0.1292394,2711.5,2710.7,0.07876823]
[1730932847590,0.1292394,2711.5,2710.9,0.005]
[1730932848705,0.1292394,2711.5,2711.1,0.005]
[1730932850677,0.1292394,2711.5,2711.0,0.005]
[1730932851126,0.1292394,2711.5,2710.5,0.8183]
[1730932851286,0.1292394,2711.5,2710.3,0.005]
[1730932851287,0.7827,2711.4,2710.3,0.005]
[1730932851610,0.06478773,2711.3,2710.3,0.005]
[1730932851767,0.06478773,2711.3,2710.1,0.005]
[1730932851974,0.7827,2711.4,2710.1,0.76931613]
[1730932852512,0.06477292,2711.3,2710.2,0.56889854]
[1730932852717,0.7827,2711.4,2710.2,0.56889854]
[1730932852914,0.06477292,2711.3,2710.2,0.56889854]
[1730932853116,0.7827,2711.4,2710.2,0.56889854]
[1730932853487,0.06472554,2711.3,2710.2,0.56889854]
[1730932853719,0.7827,2711.4,2710.2,0.56889854]
[1730932853903,0.06472554,2711.3,2710.2,0.56889854]
[1730932854107,0.799,2711.2,2709.9,0.57389854]
[1730932854789,0.0646274,2711.1,2709.9,0.57389854]
[1730932856715,0.0646274,2711.1,2710.1,0.005]
[1730932856903,0.0646274,2711.1,2710.1,0.64768223]
[1730932857072,0.799,2711.2,2710.2,0.56889854]
[1730932857278,0.799,2711.2,2710.1,0.005]
[1730932857511,0.064349,2711.1,2710.1,0.005]
[1730932858312,0.064349,2711.1,2710.1,0.57389854]
[1730932858624,0.799,2711.2,2710.1,0.57389854]
[1730932859175,0.38505756,2711.1,2710.1,0.57389854]
[1730932859386,0.44940656,2711.1,2710.1,0.57389854]
[1730932859642,0.38505756,2711.1,2710.2,0.64268214]
[1730932859994,0.06432066,2711.0,2710.2,0.64268214]
[1730932860183,0.06432066,2711.0,2710.2,0.56889854]
[1730932860524,0.38505756,2711.1,2710.2,0.56889854]
[1730932860894,0.38505756,2711.1,2710.3,0.07378219]
[1730932861081,0.0621718,2711.0,2710.3,0.07378219]
[1730932861783,0.0621718,2711.0,2710.4,0.53739854]
[1730932861982,0.799,2711.2,2710.8,0.005]
[1730932862424,0.1292394,2711.5,2710.8,0.005]
[1730932862829,0.05818479,2711.4,2710.8,0.005]
[1730932863122,0.1292394,2711.5,2710.8,0.005]
[1730932865014,0.1292394,2711.5,2711.0,0.005]
[1730932865343,0.1292394,2711.5,2711.0,0.07875829]
[1730932865842,0.1292394,2711.5,2711.0,0.005]
[1730932866400,0.1292394,2711.5,2711.4,0.005]
[1730932866813,0.1292394,2711.5,2711.2,0.005]
[1730932866814,0.00338874,2711.5,2711.2,0.005]
[1730932867013,0.04936175,2711.5,2711.2,0.005]
[1730932867341,0.02633605,2711.6,2711.2,0.005]
[1730932867705,0.02633605,2711.6,2711.5,0.005]
[1730932868043,0.07577367,2711.6,2711.5,0.005]
[1730932868228,0.02633605,2711.6,2711.5,0.005]
[1730932868415,0.07577367,2711.6,2711.5,0.005]
[1730932868617,3.0,2712.8,2711.5,0.005]
[1730932868817,0.04943762,2711.6,2711.5,0.02]
[1730932869034,1.80551687,2713.9,2711.5,0.02]
[1730932869035,4.38728809,2712.8,2711.6,0.01]
[1730932869435,4.38728809,2712.8,2711.3,0.01]
[1730932869740,4.38728809,2712.8,2711.6,0.01]
[1730932869944,4.09261809,2712.8,2711.5,0.02]
[1730932870161,0.40926181,2712.7,2711.5,0.02]
[1730932871016,3.40926181,2712.7,2711.5,0.01]
[1730932871335,3.0,2712.3,2711.0,0.01]
[1730932871507,2.91879284,2712.3,2711.0,0.01]
[1730932871843,0.8226,2712.1,2710.8,0.07375813]
[1730932872045,4.38728809,2712.0,2710.7,0.01]
[1730932872257,0.8226,2711.9,2710.7,0.01]
[1730932872410,0.8032,2711.7,2710.7,0.01]
[1730932872610,0.8032,2711.7,2710.6,0.07377293]
[1730932872803,0.8032,2711.7,2710.6,0.07377495]
[1730932873019,0.8032,2711.7,2710.3,0.01]
[1730932873344,1.34168881,2711.8,2710.4,0.7673]
[1730932873550,1.34168881,2711.8,2710.6,0.01]
[1730932873551,0.8207,2711.8,2710.6,0.01]
[1730932873703,5.20798809,2711.8,2710.4,0.7673]
[1730932873909,0.8207,2711.6,2710.4,0.7673]
[1730932874109,0.38207,2711.5,2710.4,0.7673]
[1730932874311,0.04928588,2711.4,2710.4,0.7673]
[1730932875054,0.04928588,2711.4,2710.5,0.01]
[1730932875465,0.8207,2711.6,2710.4,0.7573]
[1730932875769,0.8219,2711.4,2710.1,0.7807]
[1730932875966,0.8219,2711.4,2710.1,1.31309854]
[1730932876275,0.04924274,2711.3,2710.5,0.01]
[1730932876939,0.04924274,2711.3,2710.2,0.53239854]
[1730932877265,0.8219,2711.4,2710.2,0.53239854]
[1730932877467,0.8219,2711.4,2710.3,0.01]
[1730932877630,0.04924274,2711.3,2710.5,0.01]
[1730932877833,0.04924274,2711.3,2710.3,0.54239854]
[1730932878030,0.04924274,2711.3,2710.3,0.53239854]
[1730932878426,0.04924274,2711.3,2710.6,0.01]
[1730932878877,0.8219,2711.4,2710.7,0.7853]
[1730932879367,3.7701,2712.3,2710.8,0.0737687]
[1730932879529,3.7701,2712.3,2710.9,0.01]
[1730932879530,0.81573881,2712.2,2710.9,0.01]
[1730932879729,0.04947766,2712.1,2711.0,0.01]
[1730932879973,0.7701,2712.3,2711.0,0.0837622]
[1730932880139,0.7701,2712.3,2711.0,0.01]
[1730932880558,0.51573881,2712.2,2711.0,0.01]
[1730932880727,0.56525959,2712.2,2711.0,0.01]
[1730932883086,0.8027,2711.9,2710.7,0.76559524]
[1730932883289,0.57329055,2711.8,2710.6,0.7835]
[1730932883595,0.57329055,2711.8,2710.3,0.7866]
[1730932883596,0.8108,2711.7,2710.3,0.7866]
[1730932883957,0.04926203,2711.6,2710.3,0.7866]
[1730932884479,0.04926203,2711.6,2710.3,0.7966]
[1730932884882,0.04926203,2711.6,2710.1,0.76559524]
[1730932884883,0.7905,2711.5,2710.1,0.76559524]
[1730932885082,0.04917575,2711.4,2710.2,0.63589203]
[1730932885295,0.7905,2711.3,2710.2,0.01]
[1730932885443,0.7905,2711.3,2710.1,0.8329]
[1730932885649,0.04908946,2711.2,2710.1,0.8329]
[1730932886449,0.04908946,2711.2,2710.1,0.8529]
[1730932886951,0.04908946,2711.2,2710.3,0.02]
[1730932887292,0.04908946,2711.2,2710.6,0.01]
[1730932887496,1.92639704,2712.5,2711.1,0.02]
[1730932887791,0.04781987,2712.4,2711.6,0.8429]
[1730932887976,0.7905,2712.3,2711.6,0.8329]
[1730932888175,0.7905,2712.3,2711.6,0.8429]
[1730932888374,0.04773364,2712.2,2711.6,0.8329]
[1730932888582,0.04773364,2712.2,2711.6,0.8429]
[1730932888761,0.7905,2712.3,2711.6,0.8429]
[1730932889168,0.04773364,2712.2,2711.6,0.8429]
[1730932889698,0.7905,2712.3,2711.6,0.8429]
[1730932889924,0.04773364,2712.2,2711.6,0.8429]
[1730932890123,0.7905,2712.3,2711.6,0.8429]
[1730932890287,0.04773364,2712.2,2711.6,0.8329]
[1730932890487,0.7905,2712.3,2711.6,0.8329]
[1730932890727,0.04773364,2712.2,2711.6,0.8329]
[1730932891422,0.04773364,2712.2,2711.3,0.8296]
[1730932891632,0.04773364,2712.2,2711.4,0.01]
[1730932891922,0.04773364,2712.2,2711.3,0.8296]
[1730932892128,0.04773364,2712.2,2711.4,0.01]
[1730932893027,0.04773364,2712.2,2711.3,0.8296]
[1730932893229,1.9245525,2712.5,2711.3,0.8296]
[1730932893388,0.04769052,2712.1,2711.3,0.8296]
[1730932893586,2.19880775,2712.5,2711.4,0.01]
[1730932893786,0.0476474,2712.0,2711.4,0.01]
[1730932894127,0.04760428,2711.9,2711.4,0.01]
[1730932894295,2.19880775,2712.5,2711.4,0.01]
[1730932894296,1.9245525,2712.4,2711.4,0.01]
[1730932894498,0.04777675,2712.3,2711.4,0.01]
[1730932895086,0.04777675,2712.3,2711.3,0.8296]
[1730932895315,1.97232925,2712.3,2711.3,0.8296]
[1730932895494,1.97232925,2712.3,2711.4,0.01]
[1730932895704,0.227401,2712.2,2711.4,0.01]
[1730932896013,0.04769052,2712.1,2711.4,0.01]
[1730932896198,0.04769052,2712.1,2711.5,0.01]
[1730932898108,0.8128,2712.0,2711.0,0.804]
[1730932898303,1.97116222,2711.9,2710.7,0.784]
[1730932898627,1.92355794,2711.5,2710.3,0.784]
[1730932898794,0.8128,2711.6,2710.4,0.0737828]
[1730932898795,1.92355794,2711.4,2710.4,0.0737828]
[1730932898991,1.97121785,2711.4,2710.3,0.794]
[1730932899357,1.97121785,2711.4,2710.4,0.0837828]
[1730932899520,1.97121785,2711.4,2710.4,0.620046]
[1730932899689,0.19712179,2711.3,2710.4,0.620046]
[1730932899892,0.04757361,2711.2,2710.4,1.1782501]
[1730932900836,0.04757361,2711.2,2710.5,0.01]
[1730932901528,1.92452244,2711.4,2710.5,0.01]
[1730932901728,0.04761676,2711.3,2710.3,0.794]
[1730932901930,0.19721392,2711.2,2710.3,0.794]
[1730932902123,0.04753046,2711.1,2710.3,0.794]
[1730932902302,0.04753046,2711.1,2710.4,0.07377907]
[1730932902514,0.04753046,2711.1,2710.3,1.3302632]
[1730932902727,3.12222693,2711.6,2710.3,1.3302632]
[1730932902728,1.92452244,2711.4,2710.3,1.3302632]
[1730932902928,0.240069,2711.3,2710.3,1.3302632]
[1730932903918,1.92452244,2711.2,2710.3,1.3302632]
[1730932904116,0.04753046,2711.1,2710.3,1.3302632]
[1730932904320,1.92452244,2711.3,2710.4,0.07377911]
[1730932904666,0.04757361,2711.2,2710.3,1.3302632]
[1730932904828,0.19720961,2711.1,2710.3,1.3302632]
[1730932905371,0.04748731,2711.0,2710.4,0.07377912]
[1730932905524,0.04748731,2711.0,2710.5,0.01]
[1730932906964,0.04744416,2710.9,2710.5,0.01]
[1730932907266,1.92516335,2711.3,2710.5,0.01]
[1730932907586,0.19251634,2711.2,2710.5,0.01]
[1730932907728,0.24008995,2711.2,2710.6,0.7557]
[1730932907928,0.04757361,2711.2,2710.6,0.82947542]
[1730932908157,1.92516335,2711.4,2710.6,0.82947542]
[1730932908324,0.04738123,2711.3,2710.6,0.82947542]
[1730932908529,0.19725446,2711.3,2710.6,0.82947542]
[1730932908732,0.04738282,2711.2,2710.6,0.82947542]
[1730932909461,0.04738282,2711.2,2710.6,0.83947542]
[1730932909659,0.04738282,2711.2,2710.8,0.01]
[1730932909857,1.92516335,2711.8,2710.8,0.08376836]
[1730932910029,0.04737844,2711.1,2710.8,0.08376836]
[1730932910226,0.19251634,2711.7,2710.8,0.08376836]
[1730932910227,0.19251634,2711.7,2711.0,0.01]
[1730932910474,0.19251634,2711.7,2711.1,0.7676]
[1730932910670,0.04759416,2711.6,2711.1,0.7676]
[1730932911376,0.04759416,2711.6,2711.2,0.0737573]
[1730932911534,1.92479203,2712.0,2711.1,0.7676]
[1730932911728,0.04774742,2711.9,2711.3,0.01]
[1730932911968,2.25363717,2712.1,2711.3,0.01]
[1730932912171,0.04786508,2712.0,2711.4,0.8083]
[1730932912447,0.2780153,2712.0,2711.4,0.8083]
[1730932912873,0.04786508,2712.0,2711.4,0.8083]
[1730932914045,1.92479203,2712.2,2711.4,0.8083]
[1730932914253,0.04782196,2711.9,2711.4,0.8083]
[1730932914579,0.04777883,2711.8,2711.4,0.8083]
[1730932915070,1.92479203,2712.2,2711.4,0.8083]
[1730932915243,0.0477357,2711.7,2711.4,0.8083]
[1730932915439,0.1924792,2712.1,2711.4,0.8083]
[1730932915776,1.92450767,2712.3,2711.5,0.01]
[1730932915980,0.04786508,2712.0,2711.5,0.01]
[1730932916268,1.92450767,2712.3,2711.5,0.01]
[1730932916476,0.04782196,2711.9,2711.5,0.01]
[1730932916676,0.19245077,2712.2,2711.5,0.01]
[1730932916839,0.04785038,2711.8,2711.5,0.01]
[1730932917032,0.19245077,2712.2,2711.5,0.01]
[1730932917266,0.04780725,2711.7,2711.5,0.01]
[1730932917465,0.19245077,2712.2,2711.5,0.01]
[1730932917651,0.04776411,2711.6,2711.5,0.01]
[1730932917853,0.21169584,2712.1,2711.5,0.01]
[1730932918169,0.04793663,2712.0,2711.5,0.01]
[1730932919088,0.04793663,2712.0,2711.3,0.01]
[1730932919089,0.7925,2711.9,2711.3,0.02]
[1730932919231,0.7925,2711.9,2711.3,0.01]
[1730932919438,0.7925,2711.9,2711.3,0.02]
[1730932919439,0.32434481,2711.8,2711.3,0.02]
[1730932920146,0.32434481,2711.8,2711.3,0.01]
[1730932920671,0.32434481,2711.8,2711.2,0.01]
[1730932920875,0.32434481,2711.8,2710.8,0.8121]
[1730932921077,2.24901027,2711.8,2710.8,0.8021]
[1730932921294,0.8058,2711.6,2710.8,0.8021]
[1730932921656,0.04784322,2711.5,2710.8,0.8021]
[1730932922705,1.97250868,2711.5,2710.8,0.8121]
[1730932923265,1.97250868,2711.5,2710.8,0.8021]
[1730932923266,1.97318,2711.5,2710.8,0.8021]
[1730932924004,1.97318,2711.5,2710.4,0.8199]
[1730932924342,2.20323478,2711.4,2710.4,0.8199]
[1730932924637,1.97309371,2711.3,2710.4,0.8099]
[1730932925040,1.92533678,2711.2,2710.4,0.8099]
[1730932925391,0.04767064,2711.1,2710.4,0.8099]
[1730932925698,0.24497138,2711.1,2710.4,0.8099]
[1730932926594,0.7914,2711.0,2710.4,0.8099]
[1730932927036,0.04758433,2710.9,2710.4,0.8099]
[1730932927969,0.04758433,2710.9,2710.0,0.7967]
[1730932928170,0.04758433,2710.9,2710.2,0.01]
[1730932928373,0.04758433,2710.9,2710.2,0.02]
[1730932928670,0.04758433,2710.9,2710.4,0.01]
[1730932928968,0.773,2711.3,2710.6,0.7573]
[1730932928969,2.69822898,2711.3,2710.6,0.7573]
[1730932929177,2.69822898,2711.3,2710.6,0.7673]
[1730932929178,0.04757662,2711.2,2710.6,0.7673]
[1730932929530,2.20312698,2711.4,2710.6,0.7773]
[1730932929733,2.20312698,2711.4,2710.6,0.7673]
[1730932929930,1.97278911,2711.3,2710.6,0.7673]
[1730932930176,0.22506871,2711.2,2710.6,0.7673]
[1730932930359,0.04747384,2711.1,2710.7,0.08377565]
[1730932930559,2.20312698,2711.4,2710.7,0.01]
[1730932930869,0.04756013,2711.3,2710.7,0.01]
[1730932931180,0.04756013,2711.3,2711.0,0.01]
[1730932931470,0.04756013,2711.3,2711.1,0.01]
[1730932931677,0.04756013,2711.3,2711.2,0.01]
[1730932931844,1.92522898,2711.8,2711.2,0.01]
[1730932932180,1.92522898,2711.9,2711.2,0.01]
[1730932932338,0.04609041,2711.8,2711.2,0.01]
[1730932932786,0.04609041,2711.8,2711.3,0.01]
[1730932932984,2.58606245,2712.0,2711.3,0.01]
[1730932933137,2.58606245,2712.0,2711.2,0.01]
[1730932933138,0.04613354,2711.9,2711.4,0.7709]
[1730932933564,0.04613354,2711.9,2711.6,0.01]
[1730932933775,1.92471763,2712.3,2711.7,0.01]
[1730932933946,0.0462629,2712.2,2711.7,0.01]
[1730932934161,3.06396116,2712.7,2711.7,0.01]
[1730932934162,1.92471763,2712.5,2711.7,0.01]
[1730932934379,0.04634913,2712.4,2711.7,0.01]
[1730932935136,1.97106676,2712.4,2711.7,0.01]
[1730932936047,1.97106676,2712.4,2711.6,0.01]
[1730932936287,1.97106676,2712.4,2711.7,0.01]
[1730932936448,0.04634913,2712.4,2711.8,0.01]
[1730932936965,1.92471763,2712.5,2711.8,0.01]
[1730932937170,0.04502233,2712.4,2711.8,0.01]
[1730932937365,0.04502233,2712.4,2709.8,0.75621267]
[1730932937366,0.01,2709.9,2709.8,0.75621267]
[1730932937565,0.01,2710.0,2708.8,1.14839287]
[1730932937793,0.04394358,2709.9,2709.0,0.7931]
[1730932937951,1.54055907,2710.6,2709.7,0.7931]
[1730932938137,1.54055907,2710.6,2709.6,3.49937346]
[1730932938138,0.04420266,2710.5,2709.9,0.7931]
[1730932938337,0.04420266,2710.5,2709.6,3.49937346]
[1730932938338,1.54055907,2711.2,2710.1,0.7931]
[1730932938559,0.04446163,2711.1,2710.3,0.7931]
[1730932938774,1.54055907,2711.3,2710.4,0.55736976]
[1730932939079,0.04450478,2711.2,2710.4,0.55736976]
[1730932939284,0.04450478,2711.2,2710.5,0.55]
[1730932939454,0.04450478,2711.2,2710.5,0.74004698]
[1730932939985,1.61445907,2711.4,2710.5,0.74004698]
[1730932940282,0.04454792,2711.3,2710.5,0.74004698]
[1730932943339,0.04454792,2711.3,2710.5,0.19004698]
[1730932943543,0.04454792,2711.3,2710.4,0.55]
[1730932943841,0.04454792,2711.3,2710.3,0.7931]
[1730932943842,1.54055907,2711.1,2710.3,0.7931]
[1730932944259,0.04441847,2711.0,2710.3,0.7931]
[1730932947348,0.01,2710.7,2710.3,0.7931]
[1730932947551,0.04424583,2710.6,2710.3,0.7931]
[1730932948289,0.04424583,2710.6,2710.0,0.55736976]
[1730932948490,0.04424583,2710.6,2709.9,0.7729]
[1730932948491,0.01,2710.5,2709.9,0.7729]
[1730932948649,0.01,2710.5,2710.0,0.07379307]
[1730932948849,0.04415949,2710.4,2710.0,0.07379307]
[1730932949177,0.04415949,2710.4,2709.9,0.7729]
[1730932950191,0.04264433,2710.3,2709.9,0.7729]
[1730932950359,0.38270398,2710.6,2710.0,0.07379313]
[1730932950545,0.33896484,2710.7,2710.0,0.63116289]
[1730932950750,0.04277385,2710.6,2710.1,0.7542]
[1730932950950,1.54055907,2711.0,2710.2,0.07378041]
[1730932951253,1.54055907,2711.0,2710.1,0.7542]
[1730932951254,0.38951358,2710.9,2710.1,0.7542]
[1730932952250,0.38822349,2710.9,2710.1,0.7542]
[1730932952908,1.92878256,2710.9,2710.1,0.7542]
[1730932953399,0.38822349,2710.9,2710.1,0.7542]
[1730932953554,1.92878256,2710.9,2710.1,0.7542]
[1730932953986,0.38822349,2710.9,2710.1,0.7542]
[1730932954188,0.04290333,2710.9,2710.2,0.07377997]
[1730932954406,0.04290333,2710.9,2710.4,0.55]
[1730932954602,1.54055907,2711.2,2710.4,0.55]
[1730932954927,0.04257224,2711.1,2710.4,0.55]
[1730932955429,0.04252909,2711.0,2710.6,0.55]
[1730932955639,0.04252909,2711.0,2710.9,1.3235]
[1730932955800,1.54055907,2712.0,2711.0,1.3235]
[1730932956000,0.04291139,2711.9,2711.0,1.3235]
[1730932956208,1.54055907,2712.1,2711.0,1.3235]
[1730932956404,0.04304398,2712.0,2711.0,1.3235]
[1730932957429,0.00337605,2711.9,2711.0,1.3235]
[1730932957590,1.43084305,2712.1,2711.0,1.3235]
[1730932957790,6.10607548,2712.3,2711.0,1.3235]
[1730932958021,0.65202997,2712.2,2711.0,1.3235]
[1730932958399,2.57566199,2712.2,2711.0,1.3235]
[1730932958619,0.65202997,2712.2,2711.0,1.3235]
[1730932958943,2.57566199,2712.2,2711.0,1.3235]
[1730932959148,0.65202997,2712.2,2711.0,1.3235]
[1730932959359,3.49937346,2712.0,2711.0,0.7735]
[1730932959711,3.53966651,2711.9,2711.0,0.7735]
[1730932961124,5.46338179,2711.9,2711.0,0.7735]
[1730932962383,3.53966651,2711.9,2711.0,0.7735]
[1730932962599,3.49937346,2711.6,2710.1,0.47312528]
[1730932962882,3.49937346,2711.6,2708.3,3.79830943]
[1730932962883,0.01,2708.9,2707.5,0.75671418]
[1730932963193,0.7749,2709.3,2707.1,1.88938011]
[1730932963194,0.01,2708.5,2707.6,0.07384337]
[1730932963480,5.42526387,2709.2,2706.8,3.49937346]
[1730932963481,0.04897549,2708.4,2706.8,3.49937346]
[1730932963787,1.16429384,2708.2,2706.8,3.49937346]
[1730932963982,0.01,2708.2,2706.8,3.49937346]
[1730932964188,0.03884576,2708.1,2706.8,3.49937346]
[1730932964694,0.03884576,2708.1,2706.5,3.49937346]
[1730932964895,0.03884576,2708.1,2706.6,3.07386542]
[1730932965193,0.03884576,2708.1,2706.0,0.01]
[1730932965194,0.01,2707.7,2706.0,0.28313724]
[1730932965420,0.01,2707.7,2705.7,0.28313724]
[1730932965421,0.03862949,2707.6,2705.7,0.28313724]
[1730932965577,0.8213,2707.5,2705.8,0.7603]
[1730932965774,0.03854295,2707.4,2705.8,0.7603]
[1730932966410,0.03854295,2707.4,2705.9,0.55]
[1730932966610,0.01,2707.1,2705.9,0.55]
[1730932967776,0.8213,2707.5,2705.9,0.55]
[1730932967976,0.03854295,2707.4,2705.9,0.55]
[1730932968177,0.01,2707.1,2705.9,0.55]
[1730932968399,0.8213,2707.5,2705.9,0.55]
[1730932968605,0.01,2707.1,2705.9,0.55]
[1730932969203,0.8213,2707.5,2705.9,0.55]
[1730932969397,0.01,2707.1,2705.9,0.55]
[1730932969821,0.8213,2707.5,2705.9,0.55]
[1730932970013,0.01,2707.2,2705.9,0.55]
[1730932970517,0.03841313,2707.1,2705.9,0.55]
[1730932970921,0.01,2707.2,2705.9,0.55]
[1730932971303,0.03841313,2707.1,2705.9,0.55]
[1730932971634,0.01,2707.2,2705.9,0.55]
[1730932971926,0.03841313,2707.1,2705.9,0.55]
[1730932972297,0.01,2707.2,2705.9,0.55]
[1730932972530,0.03836985,2707.0,2705.9,0.55]
[1730932972680,0.03841313,2707.1,2705.9,0.55]
[1730932972880,0.03832657,2706.9,2705.9,0.55]
[1730932973076,0.45084887,2707.2,2705.9,0.55]
[1730932973077,0.03836985,2707.0,2705.9,0.55]
[1730932973315,0.03828328,2706.8,2705.9,0.55]
[1730932973526,0.03832657,2706.9,2705.9,0.55]
[1730932973685,0.01,2707.2,2705.9,0.55]
[1730932974118,0.03841313,2707.1,2705.8,0.7603]
[1730932974327,0.03841313,2707.1,2705.9,0.37603]
[1730932974483,0.8213,2707.5,2705.9,0.4499163]
[1730932974922,0.03854295,2707.4,2705.9,0.4499163]
[1730932975423,0.01,2707.3,2705.9,0.4499163]
[1730932975628,0.01,2707.3,2706.0,0.55]
[1730932975830,0.03845641,2707.2,2706.2,0.55]
[1730932978533,0.01,2707.1,2706.2,0.55]
[1730932978893,0.01,2707.3,2706.2,0.55]
[1730932979316,0.03581366,2707.2,2706.2,0.55]
[1730932980288,0.01,2707.1,2706.2,0.55]
[1730932980504,0.03581366,2707.2,2706.2,0.55]
[1730932980729,0.01,2707.1,2706.2,0.55]
[1730932980890,0.03577038,2707.1,2706.2,0.55]
[1730932981240,0.8113,2707.5,2706.0,0.55]
[1730932981437,0.8113,2707.5,2706.4,0.55]
[1730932981640,0.8113,2707.5,2706.3,0.07388943]
[1730932981641,0.8113,2707.5,2706.6,0.55]
[1730932981840,0.01,2707.8,2706.8,0.55]
[1730932982024,0.8127,2708.0,2707.0,0.55]
[1730932982227,0.8127,2708.0,2707.2,0.55]
[1730932982421,0.8127,2708.0,2707.3,0.07386408]
[1730932982743,0.8211,2708.5,2707.5,0.7666]
[1730932982908,0.8311,2709.0,2707.6,0.62384385]
[1730932983245,0.8311,2709.0,2707.7,0.07385012]
[1730932983544,0.8311,2709.0,2707.8,0.55]
[1730932983709,0.8311,2709.0,2708.0,0.55]
[1730932983914,0.8311,2709.0,2708.1,0.0738428]
[1730932984345,0.8211,2709.0,2708.2,0.55]
[1730932984546,0.8211,2709.0,2708.3,0.07383434]
[1730932985065,0.8211,2709.0,2708.2,0.55]
[1730932985646,0.8211,2709.0,2708.3,0.07383443]
[1730932986071,0.01,2709.4,2708.3,0.07383443]
[1730932986276,0.01,2709.4,2708.4,1.3019]
[1730932986458,0.05399004,2709.3,2708.4,1.3019]
[1730932986773,0.05399004,2709.3,2707.6,3.0]
[1730932986774,0.05399004,2709.3,2708.2,0.55]
[1730932987136,0.01,2709.4,2708.2,0.55]
[1730932988151,0.01,2709.4,2708.3,0.07382793]
[1730932988352,0.01,2709.4,2708.4,0.55]
[1730932988576,0.01,2709.4,2708.1,0.7519]
[1730932988577,0.05399004,2709.3,2708.6,0.55]
[1730932990573,0.01,2709.4,2708.2,0.55]
[1730932990763,0.05391802,2709.2,2708.2,0.55]
[1730932991093,0.01,2709.4,2708.2,0.55]
[1730932992389,0.05399004,2709.3,2708.2,0.55]
[1730932993462,0.01,2709.4,2708.2,0.55]
[1730932993787,0.01,2709.4,2707.7,0.8044]
[1730932993788,0.01,2709.4,2708.3,0.0738346]
[1730932993954,0.01,2709.4,2707.7,0.8044]
[1730932994153,0.01,2709.4,2707.8,0.38044]
[1730932994154,0.05399004,2709.3,2707.8,0.38044]
[1730932994353,0.01,2709.4,2707.8,0.38044]
[1730932995402,0.01,2709.4,2707.9,0.55]
[1730932995763,0.05399004,2709.3,2707.9,0.55]
[1730932996906,0.05399004,2709.3,2708.1,0.55]
[1730932997204,0.05399004,2709.3,2708.3,0.55]